[Event "Early-Titled-Tuesday-Blitz-February-27-2024"]
[Site "Chess.com"]
[Date "2024.02.27"]
[Round "1"]
[White "Felix-Rose"]
[Black "Roman_Ovetchkin"]
[Result "0-1"]
[WhiteElo "2230"]
[BlackElo "2600"]
[TimeControl "180+1"]
[EndTime "8:01:30 PST"]
[Termination "Roman_Ovetchkin won by resignation"]

1. e4 {[%clk 0:02:58.3]} 1... e5 {[%clk 0:02:59.2]} 2. Nf3 {[%clk 0:02:58.6]}
2... Nc6 {[%clk 0:02:58.7]} 3. d4 {[%clk 0:02:52.9]} 3... exd4 {[%clk 0:02:58]}
4. Bc4 {[%clk 0:02:53.3]} 4... Nf6 {[%clk 0:02:56.1]} 5. e5 {[%clk 0:02:50.1]}
5... Ng4 {[%clk 0:02:55.9]} 6. Bxf7+ {[%clk 0:02:35.3]} 6... Kxf7 {[%clk
0:02:55.5]} 7. Ng5+ {[%clk 0:02:35]} 7... Kg8 {[%clk 0:02:55]} 8. Qxg4 {[%clk
0:02:32.4]} 8... h6 {[%clk 0:02:52.7]} 9. Nf3 {[%clk 0:02:25.9]} 9... d6 {[%clk
0:02:52]} 10. exd6 {[%clk 0:02:19.7]} 10... Bxg4 {[%clk 0:02:50.8]} 0-1

[Event "Early-Titled-Tuesday-Blitz-February-27-2024"]
[Site "Chess.com"]
[Date "2024.02.27"]
[Round "1"]
[White "Magic-Nelwyn"]
[Black "AlexeiShirov"]
[Result "1/2-1/2"]
[WhiteElo "2492"]
[BlackElo "2852"]
[TimeControl "180+1"]
[EndTime "8:02:22 PST"]
[Termination "Game drawn by repetition"]

1. e4 {[%clk 0:03:00.9]} 1... e5 {[%clk 0:02:59.1]} 2. Nf3 {[%clk 0:03:00.9]}
2... Nc6 {[%clk 0:02:59]} 3. Bb5 {[%clk 0:03:01.5]} 3... a6 {[%clk 0:02:58.9]}
4. Bxc6 {[%clk 0:03:01.8]} 4... dxc6 {[%clk 0:02:58.1]} 5. d4 {[%clk 0:03:02.5]}
5... exd4 {[%clk 0:02:57.2]} 6. Qxd4 {[%clk 0:03:03.4]} 6... Qxd4 {[%clk
0:02:54.9]} 7. Nxd4 {[%clk 0:03:04.3]} 7... Bd7 {[%clk 0:02:51.3]} 8. Nc3 {[%clk
0:03:04.3]} 8... O-O-O {[%clk 0:02:50.3]} 9. Be3 {[%clk 0:03:04.3]} 9... Bb4
{[%clk 0:02:42.3]} 10. Ne2 {[%clk 0:03:03.3]} 10... Nf6 {[%clk 0:02:40.2]} 11.
f3 {[%clk 0:03:03.1]} 11... Rhe8 {[%clk 0:02:38.7]} 12. Kf2 {[%clk 0:03:01.2]}
12... Be6 {[%clk 0:02:28.5]} 13. a3 {[%clk 0:02:57.8]} 13... Bd6 {[%clk
0:02:27.8]} 14. Rad1 {[%clk 0:02:48.5]} 14... Bc4 {[%clk 0:02:21.4]} 15. Bf4
{[%clk 0:02:33.6]} 15... Bc5+ {[%clk 0:02:18.5]} 16. Be3 {[%clk 0:02:33.6]}
16... Bd6 {[%clk 0:02:14.3]} 17. Bf4 {[%clk 0:02:33.6]} 17... Bc5+ {[%clk
0:01:57.1]} 18. Be3 {[%clk 0:02:33.4]} 18... Bd6 {[%clk 0:01:57.2]} 1/2-1/2

[Event "Early-Titled-Tuesday-Blitz-February-27-2024"]
[Site "Chess.com"]
[Date "2024.02.27"]
[Round "1"]
[White "FREDERICKtheMATE"]
[Black "Bkmzzzzz"]
[Result "1/2-1/2"]
[WhiteElo "2671"]
[BlackElo "2387"]
[TimeControl "180+1"]
[EndTime "8:02:44 PST"]
[Termination "Game drawn by repetition"]

1. d4 {[%clk 0:03:00.9]} 1... d5 {[%clk 0:03:00]} 2. c4 {[%clk 0:03:00.5]} 2...
dxc4 {[%clk 0:03:00.9]} 3. e3 {[%clk 0:03:00.3]} 3... Nf6 {[%clk 0:02:59.9]} 4.
Bxc4 {[%clk 0:03:00.3]} 4... e6 {[%clk 0:03:00.3]} 5. Nf3 {[%clk 0:03:00.5]}
5... c5 {[%clk 0:03:00.8]} 6. O-O {[%clk 0:03:00.2]} 6... a6 {[%clk 0:03:00.5]}
7. a4 {[%clk 0:02:59.4]} 7... Nc6 {[%clk 0:03:00.1]} 8. dxc5 {[%clk 0:02:56.5]}
8... Bxc5 {[%clk 0:02:58.6]} 9. b3 {[%clk 0:02:57.1]} 9... O-O {[%clk
0:02:55.4]} 10. Bb2 {[%clk 0:02:56.6]} 10... Qe7 {[%clk 0:02:44.4]} 11. Ne5
{[%clk 0:02:48.5]} 11... Nb4 {[%clk 0:02:29.5]} 12. Qf3 {[%clk 0:02:40.4]} 12...
Rb8 {[%clk 0:02:19.3]} 13. Bc3 {[%clk 0:02:29.8]} 13... Nbd5 {[%clk 0:01:52.4]}
14. Bb2 {[%clk 0:02:22.6]} 14... Nb4 {[%clk 0:01:51.7]} 15. Bc3 {[%clk
0:02:13.9]} 15... Nbd5 {[%clk 0:01:51.3]} 16. Bb2 {[%clk 0:02:13.5]} 16... Nb4
{[%clk 0:01:51.5]} 1/2-1/2

[Event "Early-Titled-Tuesday-Blitz-February-27-2024"]
[Site "Chess.com"]
[Date "2024.02.27"]
[Round "1"]
[White "zsizsi99"]
[Black "NewBornNow"]
[Result "0-1"]
[WhiteElo "2494"]
[BlackElo "2887"]
[TimeControl "180+1"]
[EndTime "8:03:08 PST"]
[Termination "NewBornNow won by resignation"]

1. e4 {[%clk 0:03:00.9]} 1... c5 {[%clk 0:02:57.9]} 2. Nf3 {[%clk 0:03:00.7]}
2... d6 {[%clk 0:02:58]} 3. d4 {[%clk 0:02:59.5]} 3... cxd4 {[%clk 0:02:58]} 4.
Nxd4 {[%clk 0:02:59.7]} 4... Nf6 {[%clk 0:02:58.4]} 5. Nc3 {[%clk 0:03:00.2]}
5... a6 {[%clk 0:02:58.4]} 6. h3 {[%clk 0:02:49.1]} 6... e5 {[%clk 0:02:57.6]}
7. Nb3 {[%clk 0:02:45.8]} 7... Be6 {[%clk 0:02:52.1]} 8. Be3 {[%clk 0:02:40.8]}
8... Nbd7 {[%clk 0:02:49.4]} 9. Qf3 {[%clk 0:02:39.4]} 9... Rc8 {[%clk
0:02:48.4]} 10. O-O-O {[%clk 0:02:38.9]} 10... Rxc3 {[%clk 0:02:48]} 11. bxc3
{[%clk 0:02:38.7]} 11... Qc7 {[%clk 0:02:48.1]} 12. g4 {[%clk 0:02:06.6]} 12...
Qxc3 {[%clk 0:02:46.9]} 13. g5 {[%clk 0:02:06.3]} 13... d5 {[%clk 0:02:43.9]}
14. Rd3 {[%clk 0:01:36.3]} 14... Qe1+ {[%clk 0:02:36.7]} 15. Rd1 {[%clk
0:01:32.1]} 15... Ba3+ {[%clk 0:02:35.6]} 16. Kb1 {[%clk 0:01:31.7]} 16... Qc3
{[%clk 0:02:34]} 0-1

[Event "Early-Titled-Tuesday-Blitz-February-27-2024"]
[Site "Chess.com"]
[Date "2024.02.27"]
[Round "1"]
[White "Francisco_Ferrari"]
[Black "CM_rui"]
[Result "0-1"]
[WhiteElo "2210"]
[BlackElo "2599"]
[TimeControl "180+1"]
[EndTime "8:03:17 PST"]
[Termination "CM_rui won by resignation"]

1. d4 {[%clk 0:02:59.3]} 1... Nf6 {[%clk 0:03:00.1]} 2. Nf3 {[%clk 0:02:59.4]}
2... e6 {[%clk 0:03:00.8]} 3. g3 {[%clk 0:02:59.6]} 3... b6 {[%clk 0:03:00.7]}
4. Bg2 {[%clk 0:02:59.8]} 4... Bb7 {[%clk 0:03:01.6]} 5. O-O {[%clk 0:03:00.1]}
5... Be7 {[%clk 0:03:02.2]} 6. c4 {[%clk 0:02:53.7]} 6... O-O {[%clk 0:03:02]}
7. Nc3 {[%clk 0:02:52.9]} 7... d6 {[%clk 0:03:01.5]} 8. Qc2 {[%clk 0:02:52.9]}
8... Nbd7 {[%clk 0:03:01.9]} 9. Rd1 {[%clk 0:02:53.3]} 9... Re8 {[%clk
0:03:02.5]} 10. e4 {[%clk 0:02:53.1]} 10... h6 {[%clk 0:02:55.8]} 11. h4 {[%clk
0:02:42.8]} 11... Qc8 {[%clk 0:02:54.5]} 12. b4 {[%clk 0:02:39.7]} 12... a5
{[%clk 0:02:54.4]} 13. b5 {[%clk 0:02:39.1]} 13... e5 {[%clk 0:02:52.3]} 14.
dxe5 {[%clk 0:02:28.2]} 14... dxe5 {[%clk 0:02:48.7]} 15. Nd5 {[%clk 0:02:25.5]}
15... Bf8 {[%clk 0:02:32.4]} 16. Bb2 {[%clk 0:02:19.4]} 16... c6 {[%clk
0:02:20.8]} 17. Nxf6+ {[%clk 0:02:15.7]} 17... Nxf6 {[%clk 0:02:17.2]} 18. bxc6
{[%clk 0:02:14.6]} 18... Bxc6 {[%clk 0:02:11.4]} 19. Nxe5 {[%clk 0:02:14.7]}
19... Bb7 {[%clk 0:02:07.3]} 20. Kh2 {[%clk 0:02:11.4]} 20... b5 {[%clk
0:02:02.8]} 21. Bh3 {[%clk 0:02:03.6]} 21... Qc7 {[%clk 0:01:57]} 22. Bf5 {[%clk
0:01:58.1]} 22... Rxe5 {[%clk 0:01:53.5]} 0-1

[Event "Early-Titled-Tuesday-Blitz-February-27-2024"]
[Site "Chess.com"]
[Date "2024.02.27"]
[Round "1"]
[White "wannabe2700"]
[Black "Taran2004"]
[Result "1-0"]
[WhiteElo "2719"]
[BlackElo "2406"]
[TimeControl "180+1"]
[EndTime "8:03:56 PST"]
[Termination "wannabe2700 won by checkmate"]

1. e4 {[%clk 0:03:00.9]} 1... c5 {[%clk 0:02:57.4]} 2. Nf3 {[%clk 0:03:00.2]}
2... d6 {[%clk 0:02:57.7]} 3. d4 {[%clk 0:02:57.7]} 3... cxd4 {[%clk 0:02:58.6]}
4. Nxd4 {[%clk 0:02:58.6]} 4... Nf6 {[%clk 0:02:58.7]} 5. Nc3 {[%clk 0:02:58.9]}
5... a6 {[%clk 0:02:58.8]} 6. h4 {[%clk 0:02:56.8]} 6... e5 {[%clk 0:02:55.1]}
7. Nb3 {[%clk 0:02:56.6]} 7... Nc6 {[%clk 0:02:54.3]} 8. Bg5 {[%clk 0:02:49.4]}
8... Be7 {[%clk 0:02:53.9]} 9. Qd2 {[%clk 0:02:46.2]} 9... Be6 {[%clk
0:02:52.1]} 10. O-O-O {[%clk 0:02:45.7]} 10... Qc7 {[%clk 0:02:48.7]} 11. Bxf6
{[%clk 0:02:44.6]} 11... gxf6 {[%clk 0:02:42]} 12. Nd5 {[%clk 0:02:33.1]} 12...
Bxd5 {[%clk 0:02:41]} 13. exd5 {[%clk 0:02:34]} 13... Nb8 {[%clk 0:02:39.9]} 14.
Bd3 {[%clk 0:02:32.1]} 14... Nd7 {[%clk 0:02:38.4]} 15. Kb1 {[%clk 0:02:23.9]}
15... Nc5 {[%clk 0:02:36.5]} 16. Bf5 {[%clk 0:02:22.1]} 16... b5 {[%clk
0:02:29.7]} 17. Rh3 {[%clk 0:02:19.5]} 17... Nxb3 {[%clk 0:02:27.9]} 18. cxb3
{[%clk 0:02:17.4]} 18... a5 {[%clk 0:02:21.4]} 19. Rc1 {[%clk 0:02:14.6]} 19...
Qb7 {[%clk 0:02:20.8]} 20. Rhc3 {[%clk 0:02:11.3]} 20... Bd8 {[%clk 0:02:04]}
21. Rc6 {[%clk 0:02:00.7]} 21... Ke7 {[%clk 0:02:03.3]} 22. Qh6 {[%clk
0:01:47.7]} 22... Bb6 {[%clk 0:01:59]} 23. Rxd6 {[%clk 0:01:40.1]} 23... Kxd6
{[%clk 0:01:53]} 24. Qxf6+ {[%clk 0:01:39.9]} 24... Kxd5 {[%clk 0:01:51.5]} 25.
Be4+ {[%clk 0:01:40.1]} 25... Kxe4 {[%clk 0:01:51.8]} 26. Qf3+ {[%clk
0:01:37.5]} 26... Kd4 {[%clk 0:01:52.3]} 27. Rd1+ {[%clk 0:01:33.6]} 27... Kc5
{[%clk 0:01:50.7]} 28. Qc3# {[%clk 0:01:33.7]} 1-0

[Event "Early-Titled-Tuesday-Blitz-February-27-2024"]
[Site "Chess.com"]
[Date "2024.02.27"]
[Round "1"]
[White "TioCridineno"]
[Black "HamedWafa4"]
[Result "1-0"]
[WhiteElo "2421"]
[BlackElo "2700"]
[TimeControl "180+1"]
[EndTime "8:04:03 PST"]
[Termination "TioCridineno won by resignation"]

1. e4 {[%clk 0:03:00.9]} 1... c5 {[%clk 0:02:57]} 2. Nf3 {[%clk 0:03:00.3]} 2...
a6 {[%clk 0:02:57.1]} 3. c3 {[%clk 0:02:57.3]} 3... d5 {[%clk 0:02:56.1]} 4.
exd5 {[%clk 0:02:57.3]} 4... Nf6 {[%clk 0:02:56.6]} 5. d4 {[%clk 0:02:57.4]}
5... cxd4 {[%clk 0:02:56.7]} 6. Qxd4 {[%clk 0:02:53.9]} 6... Qxd5 {[%clk
0:02:56.2]} 7. Qxd5 {[%clk 0:02:50.3]} 7... Nxd5 {[%clk 0:02:57.1]} 8. Bc4
{[%clk 0:02:49.5]} 8... Nb6 {[%clk 0:02:57.5]} 9. Bb3 {[%clk 0:02:48.4]} 9...
Nc6 {[%clk 0:02:58]} 10. Be3 {[%clk 0:02:45.9]} 10... Nd7 {[%clk 0:02:57]} 11.
Nbd2 {[%clk 0:02:44.7]} 11... e6 {[%clk 0:02:56]} 12. O-O {[%clk 0:02:43.5]}
12... Nc5 {[%clk 0:02:56.4]} 13. Bc2 {[%clk 0:02:42.8]} 13... e5 {[%clk
0:02:50.4]} 14. Rfe1 {[%clk 0:02:40.6]} 14... f6 {[%clk 0:02:50.2]} 15. Nb3
{[%clk 0:02:37.2]} 15... Nxb3 {[%clk 0:02:47.6]} 16. Bxb3 {[%clk 0:02:36.2]}
16... Bg4 {[%clk 0:02:46.9]} 17. Nd2 {[%clk 0:02:29.4]} 17... O-O-O {[%clk
0:02:44.2]} 18. Nc4 {[%clk 0:02:27.6]} 18... Be7 {[%clk 0:02:43.3]} 19. Nb6+
{[%clk 0:02:25.2]} 19... Kb8 {[%clk 0:02:43.4]} 20. f3 {[%clk 0:02:19.5]} 20...
Bf5 {[%clk 0:02:41.5]} 21. Rad1 {[%clk 0:02:14.4]} 21... h5 {[%clk 0:02:38]} 22.
Nd5 {[%clk 0:02:04.8]} 22... Bd6 {[%clk 0:02:34.6]} 23. Bb6 {[%clk 0:02:03.3]}
23... Rd7 {[%clk 0:02:23.9]} 24. Ne3 {[%clk 0:02:03.1]} 24... Ne7 {[%clk
0:02:22.2]} 25. Nxf5 {[%clk 0:02:00.8]} 25... Nxf5 {[%clk 0:02:23.1]} 26. Be6
{[%clk 0:02:01]} 26... Bc7 {[%clk 0:02:06.8]} 27. Bxc7+ {[%clk 0:01:56.7]} 27...
Rxc7 {[%clk 0:02:07.7]} 28. Bxf5 {[%clk 0:01:56.9]} 28... h4 {[%clk 0:02:08.6]}
29. Rd2 {[%clk 0:01:51.4]} 29... Ka7 {[%clk 0:02:02.3]} 30. Red1 {[%clk
0:01:51.6]} 30... Re8 {[%clk 0:01:56.6]} 31. Rd7 {[%clk 0:01:50.5]} 31... Rc5
{[%clk 0:01:55.2]} 32. Rxg7 {[%clk 0:01:44.7]} 32... Rb5 {[%clk 0:01:55.4]} 33.
Rd2 {[%clk 0:01:43.6]} 33... Rc8 {[%clk 0:01:53.9]} 34. Bxc8 {[%clk 0:01:41.4]}
1-0

[Event "Early-Titled-Tuesday-Blitz-February-27-2024"]
[Site "Chess.com"]
[Date "2024.02.27"]
[Round "1"]
[White "allvim"]
[Black "Dyadya81"]
[Result "0-1"]
[WhiteElo "2476"]
[BlackElo "2842"]
[TimeControl "180+1"]
[EndTime "8:04:09 PST"]
[Termination "Dyadya81 won by resignation"]

1. e4 {[%clk 0:02:49.3]} 1... c6 {[%clk 0:03:00.2]} 2. d4 {[%clk 0:02:39.9]}
2... d5 {[%clk 0:03:00.5]} 3. exd5 {[%clk 0:02:39.6]} 3... cxd5 {[%clk
0:03:00.6]} 4. c4 {[%clk 0:02:40.3]} 4... Nf6 {[%clk 0:03:00.8]} 5. Nc3 {[%clk
0:02:40.9]} 5... Nc6 {[%clk 0:03:01.4]} 6. Nf3 {[%clk 0:02:40.5]} 6... Be6
{[%clk 0:03:01.7]} 7. c5 {[%clk 0:02:39]} 7... g6 {[%clk 0:03:01.7]} 8. Bb5
{[%clk 0:02:18.8]} 8... Bg7 {[%clk 0:03:01.8]} 9. Ne5 {[%clk 0:02:14.6]} 9...
Qc8 {[%clk 0:03:01.5]} 10. Qa4 {[%clk 0:02:09.6]} 10... Bd7 {[%clk 0:03:01.5]}
11. O-O {[%clk 0:02:04.6]} 11... O-O {[%clk 0:02:58.5]} 12. Re1 {[%clk
0:01:58.6]} 12... Re8 {[%clk 0:02:50]} 13. Bg5 {[%clk 0:01:57.3]} 13... a6
{[%clk 0:02:41]} 14. Bxc6 {[%clk 0:01:57]} 14... bxc6 {[%clk 0:02:35.1]} 15.
Nxd7 {[%clk 0:01:47.5]} 15... Qxd7 {[%clk 0:02:32.4]} 16. Re2 {[%clk 0:01:35]}
16... h6 {[%clk 0:02:10.4]} 17. Bh4 {[%clk 0:01:28.6]} 17... Nh5 {[%clk
0:02:06.5]} 18. Qd1 {[%clk 0:01:27.4]} 18... Qg4 {[%clk 0:01:57.5]} 19. Bxe7
{[%clk 0:01:26.5]} 19... Nf4 {[%clk 0:01:49.9]} 20. f3 {[%clk 0:01:26.8]} 20...
Nxe2+ {[%clk 0:01:38]} 21. Qxe2 {[%clk 0:01:25.8]} 21... Qxd4+ {[%clk
0:01:36.5]} 22. Kh1 {[%clk 0:01:25.5]} 22... Ra7 {[%clk 0:01:34.2]} 0-1

[Event "Early-Titled-Tuesday-Blitz-February-27-2024"]
[Site "Chess.com"]
[Date "2024.02.27"]
[Round "1"]
[White "xhembulla"]
[Black "emiliochess"]
[Result "1-0"]
[WhiteElo "2647"]
[BlackElo "2328"]
[TimeControl "180+1"]
[EndTime "8:04:16 PST"]
[Termination "xhembulla won by resignation"]

1. e4 {[%clk 0:03:00.9]} 1... e5 {[%clk 0:02:56.7]} 2. Nf3 {[%clk 0:03:00.6]}
2... Nc6 {[%clk 0:02:56.1]} 3. Bc4 {[%clk 0:03:00.8]} 3... Bc5 {[%clk
0:02:49.2]} 4. c3 {[%clk 0:03:00.5]} 4... Nf6 {[%clk 0:02:38.3]} 5. d3 {[%clk
0:03:00.5]} 5... O-O {[%clk 0:02:38.2]} 6. O-O {[%clk 0:02:59.1]} 6... d6 {[%clk
0:02:38.6]} 7. h3 {[%clk 0:02:56.6]} 7... Be6 {[%clk 0:02:38.1]} 8. Nbd2 {[%clk
0:02:51.7]} 8... a6 {[%clk 0:02:36.7]} 9. a4 {[%clk 0:02:50.9]} 9... Rb8 {[%clk
0:02:36.3]} 10. Re1 {[%clk 0:02:47.9]} 10... b5 {[%clk 0:02:35.2]} 11. axb5
{[%clk 0:02:47.3]} 11... axb5 {[%clk 0:02:36.1]} 12. Bxe6 {[%clk 0:02:46]} 12...
fxe6 {[%clk 0:02:37]} 13. b4 {[%clk 0:02:46.1]} 13... Bb6 {[%clk 0:02:37.1]} 14.
Nf1 {[%clk 0:02:40.5]} 14... Nh5 {[%clk 0:02:37.1]} 15. Be3 {[%clk 0:02:40.5]}
15... Nf4 {[%clk 0:02:34.7]} 16. Bxb6 {[%clk 0:02:36.6]} 16... Rxb6 {[%clk
0:02:34.1]} 17. Kh2 {[%clk 0:02:35.2]} 17... g5 {[%clk 0:02:34]} 18. Ne3 {[%clk
0:02:33.2]} 18... h5 {[%clk 0:02:32.8]} 19. Rg1 {[%clk 0:02:19.7]} 19... Qf6
{[%clk 0:02:18.6]} 20. Ne1 {[%clk 0:02:01.6]} 20... Ne7 {[%clk 0:01:59.1]} 21.
g3 {[%clk 0:01:59.9]} 21... Nxh3 {[%clk 0:01:44]} 22. Kxh3 {[%clk 0:01:59.4]}
22... g4+ {[%clk 0:01:43.9]} 23. Kh2 {[%clk 0:01:55.8]} 23... Qxf2+ {[%clk
0:01:44.4]} 24. N1g2 {[%clk 0:01:55.5]} 24... Rf3 {[%clk 0:01:38.8]} 25. Qe1
{[%clk 0:01:53.3]} 25... Qb2 {[%clk 0:01:21.6]} 26. Rf1 {[%clk 0:01:44.1]} 1-0

[Event "Early-Titled-Tuesday-Blitz-February-27-2024"]
[Site "Chess.com"]
[Date "2024.02.27"]
[Round "1"]
[White "Zampronha1971"]
[Black "Yurovskykh_Oleksandr"]
[Result "0-1"]
[WhiteElo "2350"]
[BlackElo "2654"]
[TimeControl "180+1"]
[EndTime "8:04:17 PST"]
[Termination "Yurovskykh_Oleksandr won by resignation"]

1. e4 {[%clk 0:02:59.6]} 1... e6 {[%clk 0:02:57.4]} 2. d4 {[%clk 0:02:58.3]}
2... d5 {[%clk 0:02:54.7]} 3. Nc3 {[%clk 0:02:58.7]} 3... dxe4 {[%clk
0:02:53.3]} 4. Nxe4 {[%clk 0:02:57.6]} 4... Bd7 {[%clk 0:02:45.1]} 5. Nf3 {[%clk
0:02:56.3]} 5... Bc6 {[%clk 0:02:44.5]} 6. Bd3 {[%clk 0:02:56.7]} 6... Nd7
{[%clk 0:02:44.4]} 7. O-O {[%clk 0:02:56.1]} 7... Ngf6 {[%clk 0:02:44.7]} 8.
Ned2 {[%clk 0:02:55.8]} 8... Be7 {[%clk 0:02:41.4]} 9. Re1 {[%clk 0:02:56.3]}
9... O-O {[%clk 0:02:41]} 10. Nc4 {[%clk 0:02:51.8]} 10... b6 {[%clk 0:02:39.2]}
11. Nce5 {[%clk 0:02:47]} 11... Bb7 {[%clk 0:02:39.2]} 12. c3 {[%clk 0:02:45]}
12... c5 {[%clk 0:02:38]} 13. Bb5 {[%clk 0:02:40.9]} 13... Nxe5 {[%clk 0:02:32]}
14. Nxe5 {[%clk 0:02:36.9]} 14... Qd5 {[%clk 0:02:29.7]} 15. Qf3 {[%clk
0:02:26.1]} 15... Qxf3 {[%clk 0:02:28.3]} 16. Nxf3 {[%clk 0:02:27]} 16... Bxf3
{[%clk 0:02:27.6]} 17. gxf3 {[%clk 0:02:27.9]} 17... cxd4 {[%clk 0:02:27]} 18.
cxd4 {[%clk 0:02:28.8]} 18... Rfd8 {[%clk 0:02:26.4]} 19. Be3 {[%clk 0:02:28.8]}
19... Rac8 {[%clk 0:02:23.7]} 20. Rec1 {[%clk 0:02:28.7]} 20... Nd5 {[%clk
0:02:20.5]} 21. Ba6 {[%clk 0:02:28.5]} 21... Rxc1+ {[%clk 0:02:19.4]} 22. Rxc1
{[%clk 0:02:27.7]} 22... g6 {[%clk 0:02:11.5]} 23. a3 {[%clk 0:02:27.2]} 23...
Kg7 {[%clk 0:02:11.6]} 24. Bb7 {[%clk 0:02:26.2]} 24... Bf6 {[%clk 0:02:11]} 25.
Bxd5 {[%clk 0:02:24.8]} 25... Rxd5 {[%clk 0:02:10.9]} 26. Rc7 {[%clk 0:02:25.2]}
26... a5 {[%clk 0:02:00.5]} 27. Rc6 {[%clk 0:02:11.6]} 27... Rb5 {[%clk
0:01:58.7]} 28. d5 {[%clk 0:01:57.4]} 28... exd5 {[%clk 0:01:48]} 29. Rxb6
{[%clk 0:01:57.2]} 29... Rxb6 {[%clk 0:01:43.9]} 30. Bxb6 {[%clk 0:01:58.1]}
30... a4 {[%clk 0:01:44.4]} 31. Kf1 {[%clk 0:01:51.7]} 31... Bxb2 {[%clk
0:01:44.3]} 32. Bc5 {[%clk 0:01:52.3]} 32... Kf6 {[%clk 0:01:41.1]} 33. Ke2
{[%clk 0:01:52.7]} 33... Be5 {[%clk 0:01:36.1]} 34. h3 {[%clk 0:01:47.2]} 34...
Kg5 {[%clk 0:01:35]} 0-1

[Event "Early-Titled-Tuesday-Blitz-February-27-2024"]
[Site "Chess.com"]
[Date "2024.02.27"]
[Round "1"]
[White "AlexandraSamaganova"]
[Black "ShazilTheGOAT2006"]
[Result "0-1"]
[WhiteElo "2292"]
[BlackElo "2624"]
[TimeControl "180+1"]
[EndTime "8:04:24 PST"]
[Termination "ShazilTheGOAT2006 won by resignation"]

1. c4 {[%clk 0:03:00.7]} 1... e5 {[%clk 0:02:58.8]} 2. Nc3 {[%clk 0:02:48.4]}
2... Nf6 {[%clk 0:02:53.2]} 3. Nf3 {[%clk 0:02:47.1]} 3... Nc6 {[%clk
0:02:52.8]} 4. a3 {[%clk 0:02:46]} 4... g6 {[%clk 0:02:50.6]} 5. b4 {[%clk
0:02:43.8]} 5... e4 {[%clk 0:02:39.9]} 6. Ng5 {[%clk 0:02:42.8]} 6... Bg7 {[%clk
0:02:40.8]} 7. e3 {[%clk 0:02:41.5]} 7... h6 {[%clk 0:02:39.5]} 8. Nh3 {[%clk
0:02:41.9]} 8... O-O {[%clk 0:02:39.3]} 9. Be2 {[%clk 0:02:37.6]} 9... d5 {[%clk
0:02:39.2]} 10. cxd5 {[%clk 0:02:34.9]} 10... Nxd5 {[%clk 0:02:33.8]} 11. Bb2
{[%clk 0:02:32.1]} 11... Bxh3 {[%clk 0:02:29]} 12. gxh3 {[%clk 0:02:32.2]} 12...
Ne5 {[%clk 0:02:29.2]} 13. O-O {[%clk 0:02:20.6]} 13... Nd3 {[%clk 0:02:18.5]}
14. Bxd3 {[%clk 0:02:09.4]} 14... exd3 {[%clk 0:02:11.7]} 15. Qg4 {[%clk
0:02:07.4]} 15... Nxc3 {[%clk 0:02:11.3]} 16. Bxc3 {[%clk 0:02:07]} 16... Bxc3
{[%clk 0:02:11.6]} 17. dxc3 {[%clk 0:02:07.9]} 17... Qf6 {[%clk 0:02:10.2]} 18.
c4 {[%clk 0:02:01.4]} 18... Rad8 {[%clk 0:02:08.9]} 19. Rad1 {[%clk 0:02:00.9]}
19... Qc3 {[%clk 0:02:08.3]} 20. h4 {[%clk 0:01:52]} 20... h5 {[%clk 0:02:07.6]}
21. Qf4 {[%clk 0:01:48.3]} 21... Qxa3 {[%clk 0:01:55.3]} 22. Qxc7 {[%clk
0:01:41.8]} 22... Qxb4 {[%clk 0:01:45.1]} 23. Rb1 {[%clk 0:01:40.9]} 23... Qa4
{[%clk 0:01:43.8]} 24. Qxb7 {[%clk 0:01:37.8]} 24... Qxc4 {[%clk 0:01:43.7]} 25.
Qxa7 {[%clk 0:01:36.7]} 25... Qxh4 {[%clk 0:01:42.2]} 26. Qa5 {[%clk 0:01:24.7]}
26... Qg4+ {[%clk 0:01:41.2]} 27. Kh1 {[%clk 0:01:24.2]} 27... Qf3+ {[%clk
0:01:42.1]} 28. Kg1 {[%clk 0:01:24.2]} 28... Rd5 {[%clk 0:01:42.9]} 29. Qc7
{[%clk 0:01:19.7]} 29... Rg5+ {[%clk 0:01:42.5]} 30. Qg3 {[%clk 0:01:19.6]}
30... Rxg3+ {[%clk 0:01:43.2]} 31. hxg3 {[%clk 0:01:20.5]} 31... Rc8 {[%clk
0:01:43.6]} 0-1

[Event "Early-Titled-Tuesday-Blitz-February-27-2024"]
[Site "Chess.com"]
[Date "2024.02.27"]
[Round "1"]
[White "MessiKingdom"]
[Black "Ati1517"]
[Result "1-0"]
[WhiteElo "2607"]
[BlackElo "2252"]
[TimeControl "180+1"]
[EndTime "8:04:30 PST"]
[Termination "MessiKingdom won by resignation"]

1. d4 {[%clk 0:03:00.9]} 1... Nf6 {[%clk 0:02:59.2]} 2. Bf4 {[%clk 0:03:01.4]}
2... d6 {[%clk 0:02:55.8]} 3. Nc3 {[%clk 0:03:00.8]} 3... g6 {[%clk 0:02:54.1]}
4. e4 {[%clk 0:03:00.6]} 4... Bg7 {[%clk 0:02:53.4]} 5. Qd2 {[%clk 0:03:00.9]}
5... O-O {[%clk 0:02:51.1]} 6. O-O-O {[%clk 0:03:01.3]} 6... Bd7 {[%clk
0:02:49.8]} 7. Bh6 {[%clk 0:02:59.8]} 7... Nc6 {[%clk 0:02:49.4]} 8. Nf3 {[%clk
0:02:57.7]} 8... Bg4 {[%clk 0:02:42.6]} 9. Be2 {[%clk 0:02:57.4]} 9... e5 {[%clk
0:02:39.9]} 10. d5 {[%clk 0:02:28.8]} 10... Nd4 {[%clk 0:02:04.5]} 11. Bxg7
{[%clk 0:02:23.9]} 11... Nxe2+ {[%clk 0:01:54.3]} 12. Qxe2 {[%clk 0:02:24.8]}
12... Kxg7 {[%clk 0:01:54.6]} 13. h3 {[%clk 0:02:25.4]} 13... Bxf3 {[%clk
0:01:52.3]} 14. Qxf3 {[%clk 0:02:25.5]} 14... c6 {[%clk 0:01:41.3]} 15. g4
{[%clk 0:02:25.6]} 15... cxd5 {[%clk 0:01:40.5]} 16. Nxd5 {[%clk 0:02:25.7]}
16... Nxd5 {[%clk 0:01:40.3]} 17. Rxd5 {[%clk 0:02:26.6]} 17... Rc8 {[%clk
0:01:39.4]} 18. Rhd1 {[%clk 0:02:19.8]} 18... Qc7 {[%clk 0:01:33.6]} 19. c3
{[%clk 0:02:18.2]} 19... Rfd8 {[%clk 0:01:31.8]} 20. h4 {[%clk 0:02:02.5]} 20...
Qb6 {[%clk 0:01:18.2]} 21. g5 {[%clk 0:02:00.4]} 21... Rc6 {[%clk 0:01:15.6]}
22. Qf6+ {[%clk 0:01:59.8]} 22... Kg8 {[%clk 0:01:15.2]} 23. Rxe5 {[%clk
0:01:57.4]} 23... Rdc8 {[%clk 0:01:07.8]} 24. Re7 {[%clk 0:01:56.3]} 1-0